{"text_format":"1","workbook":"xlsx","n_sheets":3,"sheets":["Antrag","Kosten- und Finanzier.übersicht","Zahlenmäßiger Nachweis"],"not_rendered":{"charts":0,"images":18,"macros":1,"external_links":0,"defined_names":17,"comments":0,"pivot_tables":0},"unopened":[],"bounds":{"document_bytes":16777216,"sheet_cells":100000,"rows_first":2000,"rows_last":500,"rows_between":2000,"halvings":0,"cell_chars":16384,"cell_head_chars":4096},"cells_cut":0,"cells_raw":0,"read":"whole","date_system":"1900"}

{"sheet":"Antrag","index":0,"n_rows":131,"n_cols":6,"rows_kept":131,"cut":false,"hidden":false,"merged":[[39,1,39,5],[41,1,41,5],[109,1,109,5],[128,0,128,2],[105,1,105,5],[106,1,106,4],[127,4,127,5],[127,0,127,2],[107,1,107,5],[110,1,110,5],[111,1,111,5],[112,1,112,5],[48,1,48,5],[108,1,108,5],[90,1,90,5],[82,1,82,5],[133,0,133,4],[114,1,114,5],[129,4,129,5],[124,0,125,5],[128,4,128,5],[118,0,118,5],[115,0,115,5],[130,4,130,5],[120,0,120,5],[43,1,43,5],[79,1,79,5],[80,1,80,5],[76,1,76,5],[53,1,53,5],[65,1,65,5],[66,1,66,5],[70,1,70,5],[69,1,69,5],[45,1,45,5],[54,1,54,5],[64,1,64,5],[62,1,62,5],[75,1,75,5],[57,1,57,5],[49,1,49,5],[0,0,0,5],[38,1,38,5],[40,1,40,5],[42,1,42,5],[17,2,17,5],[10,1,10,5],[21,2,21,5],[4,1,4,5],[19,2,19,5],[18,1,20,1],[33,5,34,5],[29,1,29,5],[6,1,6,5],[35,1,35,5],[36,1,36,5],[37,1,37,5],[99,5,101,5],[96,1,96,5],[84,1,84,4],[85,1,85,4],[58,1,58,5],[61,1,61,5],[78,1,78,5],[97,1,97,5],[83,1,83,4]]}
["Antrag \nzur Förderung eines Vorhabens über den \nVerfügungsfonds\ndes Programms \"Soziale Stadt Wehringhausen\" "]
[]
["1.","Titel des Vorhabens"]
[null,"Kurzer Titel, der den Inhalt des Projekts beschreibt"]
[]
[]
[null,"Bitte achten Sie darauf, alle gelben Kästen nur so weit auszufüllen, dass Ihr Text zu sehen ist.\nZu viel eingetragener Text wird beim Ausdruck/ beim Erstellen einer PDF abgeschnitten und nicht gelesen! Bestenfalls machen Sie einen Probedruck."]
[]
["2.","Kurzbeschreibung"]
[null,"Bitte in kurzen Worten den Inhalt des Vorhabens erläutern"]
[]
[]
["3. ","Laufzeit","von",null,"bis"]
[]
["4. ","Antragsteller /-in",null,null,"Datum der Antragstellung:  "]
[null,"Anrede"]
[]
[null,"Name/ \nAnsprechpartner*in: *)"]
[null,"Einrichtung/ Verein/ Gruppe:"]
[]
[]
[null,"Anschrift: *)"]
[]
[]
[null,"Telefon / Fax: *)",null,"Mobil: *)",null,"eMail: *)"]
[null,null,null,null,null,"*): Siehe Seite 5"]
[]
["5.","Anlass, Ausgangssituation"]
[null,"Was ist der Anlass für die Antragsstellung? Worin besteht der Handlungsbedarf?"]
[]
[]
[null,{"$f":"Titel","v":0},null,null,null,{"$f":"Datum","v":"00:00:00"}]
[]
["6.","Bezug zu den Zielen des Verfügungsfonds",null,null,null,"Bitte mindestens ein Ziel benennen, besser mehrere. \nZutreffende Kästchen bitte anklicken."]
[null,"Das Vorhaben trägt zur Erreichung folgender Ziele bei:"]
[null,"Stärkung des Images von Wehringhausen."]
[null,"Erhöhung der Identifikation der Bevölkerung mit ihrem Stadtteil."]
[null,"Förderung des bürgerschaftlichen Engagements."]
[null,"Stärkung der nachbarschaftlichen Kontakte sowie des Zusammenlebens der verschiedenen Generationen und Kulturen in Wehringhausen."]
[null,"Stärkung der Vernetzung von Einrichtungen und Organisationen im Quartier."]
[null,"Belebung der Stadtteilkultur und Stärkung derFreizeit- und Aufenthaltsfunktion."]
[null,"Stärkung der Wohnfunktion des Stadtteils."]
[null,"Förderung der Teilhabe der Bevölkerung am wirtschaftlichen, sozialen und kulturellen Leben in Wehringhausen."]
[null,"Förderung der Weiterbildung und der Informationsverbreitung, soweit dies für die Erreichung der Ziele des Handlungskonzepts erforderlich ist."]
[null,"Gestaltung des öffentlichen Raums."]
[null,"Maßnahmen die der Entwicklung des Kreativquartiers dienlich sind."]
[]
["7.","Inhalt"]
[null,"Mit welchen Schritten/ Angeboten/ Aktionen wollen Sie die Projektziele erreichen? \n(Maßnahmen/ Bausteine)"]
[]
[]
[null,{"$f":"Titel","v":0},null,null,null,{"$f":"Datum","v":"00:00:00"}]
["8.","Ziele des Vorhabens"]
[null,"Welche Ziele möchten Sie mit der Durchführung Ihres Vorhabens erreichen? \nWas soll das Ergebnis Ihres Vorhabens sein?"]
[]
[]
["9.","Zielgruppen, Stadtteilbezug und Teilhabe"]
[null,"An wen richtet sich das Vorhaben, welche Zielgruppen im Stadtteil sollen erreicht werden? \nWem soll Ihr Projekt zu mehr Teilhabe am gesellschaftlichen Leben verhelfen und wie?"]
[]
[]
["10.","Partizipation"]
[null,"Wie sollen die Projektteilnehmer*nnen bei der Entwicklung, Planung und/ oder der Umsetzung des Vorhabens beteiligt werden? Werden Bewohner*innen beteiligt? Wenn ja, wie?"]
[]
[]
["11.","Netzwerkpartner"]
[null,"Mit welchen Kooperations-/ Netzwerkpartner*innen wollen Sie dieses Projekt bearbeiten? Was ist deren Rolle und welchen \"Status\" hat die Mitwirkungsbereitschaft (Planung/ Anfrage bereits erfolgt/ Zusage)?"]
[]
[]
["12.","Wirkung und Nachhaltigkeit"]
[null,"Was ist das Besondere an Ihrem Projekt? Welche bleibenden Wirkungen soll das Vorhaben erzielen?\n(Wie) kann sich das Projekt in absehbarer Zukunft verselbständigen?"]
[]
[]
[null,{"$f":"Titel","v":0},null,null,null,{"$f":"Datum","v":"00:00:00"}]
[]
["13.","Öffentlichkeitsarbeit und Dokumentation"]
[null,"Welche Formen der Öffentlichkeitsarbeit planen Sie? \nWelche Formen der Visualisierung/ Dokumentation sind vorgesehen?"]
[]
[]
["14.","Referenzen und Erfahrungen "]
[null,"Welche eigenen Erfahrungen bei der Umsetzung solcher Vorhaben bringen Sie ein, welche ggf. ihre Kooperations-/ Netzwerkpartner*innen?"]
[]
[]
["15.","Realisierbarkeit (bitte anklicken)"]
[null,"Sind die erforderlichen Ressourcen (z.B. Räume/ Grundstücke) vorhanden und verfügbar?"]
[null,"Ist bereits eine hauptverantwortliche Person benannt?"]
[null,"Ist das Projekt im geplanten Zeitraum umsetzbar?"]
[]
["16.","Hinweis: AUSSCHLUSSKRITERIEN"]
[null,"Folgende Maßnahmen können grundsätzlich NICHT gefördert werden:"]
[null," - Bauliche Maßnahmen"]
[null," - Maßnahmen, mit deren Durchführung vor der Durchführung bereits begonnen wurde oder die\n   abgeschlossen sind. (Als Beginn ist bereits der Abschluss eines Leistungs- oder Lieferungsauftrags zu\n   werten, vorbereitende Planungsarbeiten sind hiervon ausgenommen.)"]
[null," - Maßnahmnen, die anderweitig gefördert werden können (Vermeidung von Doppelförderung)"]
[null," - Maßnahmen, die der Gewinnerziehlung dienen."]
[null," - Maßnahmen, deren Durchführung auch ohne Förderung nach diesen Richtlinien sichergestellt sind."]
[]
["17.","Fördersumme, Finanzplan"]
[null,"Die Fördersumme ist hier nachrichtlich widergegegeben."]
[null,"Die verschiedenen Kostenpositionen sind der Kosten- und Finanzierungsübersicht zu entnehmen. Diese ist in dieser Excel-Arbeitsmappe als 2. Arbeitsblatt enthalten (siehe \"Reiter\" am unteren Rand). \nDie Kosten- und Finanzierungsübersicht ist Bestandtteil des Antrags und muss ausgefüllt und separat unterschreiben sein."]
[]
[null,"Summe Ausgaben:",null,{"$f":"'Kosten- und Finanzier.übersicht'!E58","v":0},null,"Diese Felder dürfen nicht überschrieben werden, sie werden automatisch aus der Kosten- und Finanzierungsübersicht übertragen!"]
[null,"Erwartete Einnahmen:",null,{"$f":"'Kosten- und Finanzier.übersicht'!E78","v":0}]
[null,"Beantragte Fördersumme:",null,{"$f":"'Kosten- und Finanzier.übersicht'!E80","v":0}]
[]
[null,{"$f":"Titel","v":0},null,null,null,{"$f":"Datum","v":"00:00:00"}]
[]
["18.","Eigenerklärungen"]
[null,"Ich/ wir erlären, dass"]
[null," - die in diesem Antrag gemachten Angaben einschließlich seiner Anlagen inkl. Finanzplan \n   vollständig und richtig sind;"]
[null," - mit der Maßnahme noch nicht begonnen wurde und vor Erteilung der Bewilligung nicht begonnen wird;"]
[null," - ich/ wir die AUSSCHLUSSKRITERIEN (Nr. 16 dieses Antrags) zur Kenntnis genommen haben, \n   und dass diese auf das hier beantragte Projekt NICHT zutreffen;"]
[null," - mir/ uns die Richtlinien der Stadt Hagen zur Vergabe der Mittel aus dem Verfügungsfonds bekannt \n   sind, und dass diese von mir/ uns als verbindlich anerkannt werden;"]
[null," - mir/ uns bekannt ist, dass ich/ wir nach Beendigung des Projekts einen satzungsgemäßen Nachweis über \n   die Verwendung der Mittel einreichen müssen, der von der Stadt Hagen geprüft wird;"]
[null," - ich/ wir für die beantragende Einrichtung/ Verein/ Initiative zeichnungsberechtigt sind."]
[]
[null,"Ich bin/ wir sind als Antragsteller vorsteuerabzugsberechtigt. \nDer Zuschuss ist als Netto-Betrag auszuzahlen. (Ggf. bitte ankreuzen!)"]
["Mir ist bekannt: Ein Rechtsanspruch auf eine Bewilligung besteht nicht.\nÜber das Ergebnis der Entscheidung werden die Antragsteller unterrichtet."]
[]
["Bitte beachten:"]
["Die Anträge müssen spätestens drei Wochen vor der nächsten Sitzung des Lenkungskreises beim Quartiersmanagement Wehringhausen eingegangen sein. Die Termine erfahren Sie beim Quartiersmanagement. \nDie Anträge werden in der Reihenfolge ihres Eingangs bearbeitet.\nEs wird empfohlen, frühzeitig beim Quartiersmanagement eine Antragsberatung in Anspruch zu nehmen. Telefon: 02331 / 373 52 66, team@qm-wehringhausen.de. "]
[]
["Die Kosten- und Finanzierungsübersicht im weiteren Tabellenblatt dieser Arbeitsmappe \nist Bestandteil dieses Förderantrags. Sie ist separat zu unterschreiben."]
[]
["*) (siehe Seite 1):"]
[]
["Mit meiner Unterschrift bestätige ich, dass meine personenbezogenen Daten von der Stadt Hagen zur Bearbeitung und Umsetzung meines durch den \"Verfügungsfonds Wehringhausen\" unterstützten Vorhabens verarbeitet und unter Beachtung der Datenschutz-Grundverordnung (EU-DSGVO) genutzt werden können. Die Nutzung beschränkt sich auf die Kontaktaufnahme und auf die Umsetzung des Antrags im Rahmen des hier beschriebenen Vorhabens. Die Daten werden bis zur vollständigen Abwicklung des Antrags gespeichert und anschließend gelöscht. Eine vorzeitige Löschung ist mit Einreichung des Antrags nicht mehr möglich. Mit ist bekannt, dass der Antrag den Mitgliedern des Lenkungskreises Wehringhausen zur Kenntnis gegeben wird. "]
[]
[]
[]
["Ort, Datum",null,null,null,"Unterschrift"]
[null,null,null,null,{"$f":"Name__Ansprechpartner","v":0}]
[null,null,null,null,"Name in Blockbuchstaben"]

{"sheet":"Kosten- und Finanzier.übersicht","index":1,"n_rows":100,"n_cols":6,"rows_kept":100,"cut":false,"hidden":false,"merged":[[63,2,63,3],[4,1,4,4],[5,1,5,4],[13,2,13,5],[61,2,61,3],[62,2,62,3],[75,2,75,3],[64,2,64,3],[65,2,65,3],[66,2,66,3],[67,2,67,3],[68,2,68,3],[69,2,69,3],[70,2,70,3],[71,2,71,3],[72,2,72,3],[73,2,73,3],[74,2,74,3],[85,4,85,5],[86,4,86,5],[81,0,81,5],[82,0,82,5],[83,0,83,2],[83,4,83,5],[84,0,84,2],[84,4,84,5]]}
["Anlage zum Antrag an den Verfügungsfonds Wehringhausen",null,null,null,null,{"$f":"Datum","v":"00:00:00"}]
[{"$f":"Titel","v":0}]
[]
[null,"Antragsteller:"]
[null,{"$f":"Institution","v":0}]
[null,{"$f":"Name__Ansprechpartner","v":0}]
[]
["Sie können Eingaben nur in den hellgelben Feldern vornehmen. Die jeweiligen Summen errechnen sich automatisch."]
["Zeilen einblenden: Zwei Zeilen markieren - rechte Maustaste - Einblenden -> Ausgeblendete Zeilen zwischen den markierten Zeilen werden angezeigt."]
[]
["Kosten- und Finanzierungsübersicht"]
["Kalkulation der Ausgaben, der Einnahmen und des Fördermittelbedarfs"]
[]
[null,"Kostenart","geplante/ geschätzte Kosten"]
[null,null,"(z.B. Sachmittel, Öffentlichkeitsarbeit, Honorare, Büromaterialien)"]
["Nr.","Ausgaben in brutto inkl. MWSt.","Einz.-Preis","Anzahl","Summe","Bemerkungen"]
["1.",null,null,null,{"$f":"C17*D17","v":0}]
["2.",null,null,null,{"$f":"C18*D18","v":0}]
["3.",null,null,null,{"$f":"C19*D19","v":0}]
["4.",null,null,null,{"$f":"C20*D20","v":0}]
["5.",null,null,null,{"$f":"C21*D21","v":0}]
["6.",null,null,null,0]
["7.",null,null,null,0]
["8.",null,null,null,0]
["9.",null,null,null,0]
["10.",null,null,null,0]
["11.",null,null,null,0]
["12.",null,null,null,0]
["13.",null,null,null,0]
["14.",null,null,null,0]
["15.",null,null,null,0]
["16.",null,null,null,0]
["17.",null,null,null,0]
["18.",null,null,null,0]
["19.",null,null,null,0]
["20.",null,null,null,0]
["21.",null,null,null,0]
["22.",null,null,null,0]
["23.",null,null,null,0]
["24.",null,null,null,0]
["25.",null,null,null,0]
["26.",null,null,null,0]
["27.",null,null,null,0]
["28.",null,null,null,0]
["29.",null,null,null,0]
["30.",null,null,null,0]
["31.",null,null,null,0]
["32.",null,null,null,0]
["33.",null,null,null,0]
["34.",null,null,null,0]
["35.",null,null,null,0]
["36.",null,null,null,0]
["37.",null,null,null,0]
["38.",null,null,null,0]
["39.",null,null,null,0]
["40.",null,null,null,0]
[null,"bis zu 25 weitere Zeilen können eingeblendet werden"]
["Summe Ausgaben",null,null,null,{"$f":"SUM(E17:E57)","v":0}]
[]
[null,null,"(ergänzen Sie die Liste entsprechend Ihrer Finanzkalkulation)"]
["Nr.","Einnahmen/ Eigenmittel/ Drittmittel",null,null,"Summe","Bemerkungen"]
["1.",null,null,null,{"$f":"C62","v":0}]
["2.",null,null,null,{"$f":"C63","v":0}]
["3.",null,null,null,{"$f":"C64","v":0}]
["4.",null,null,null,{"$f":"C65","v":0}]
["5.",null,null,null,{"$f":"C66","v":0}]
["6.",null,null,null,{"$f":"C67","v":0}]
["7.",null,null,null,0]
["8.",null,null,null,0]
["9.",null,null,null,0]
["10.",null,null,null,0]
["11.",null,null,null,0]
["12.",null,null,null,0]
["13.",null,null,null,0]
["14.",null,null,null,0]
["15.",null,null,null,0]
[null,"bis zu 10 weitere Zeilen können eingeblendet werden"]
["Summen Einnahmen",null,null,null,{"$f":"SUM(E62:E77)","v":0}]
[]
["Fördermittel Verfügungsfonds:",null,null,null,{"$f":"E58-E78","v":0}]
[]
["Bitte beachten Sie, dass Einnahmen, Eigenmittel oder die Verwendung von Drittmitteln \ndie Höhe des Zuschusses verringern!"]
[]
[]
["Ort, Datum",null,null,null,"Unterschrift"]
[null,null,null,null,{"$f":"Name__Ansprechpartner","v":0}]
[null,null,null,null,"Name in Blockbuchstaben"]
[]
[]
[]
[]
[]
[]
[]
[]
[]
[]
[null,"Bitte NICHT löschen!"]
[null,"Frau","ja"]
[null,"Herr","nein"]

{"sheet":"Zahlenmäßiger Nachweis","index":2,"n_rows":63,"n_cols":13,"rows_kept":63,"cut":false,"hidden":false,"merged":[[7,6,7,11],[9,6,9,11],[10,10,10,11],[0,0,0,12],[1,0,1,12],[2,0,2,12],[5,1,5,4],[6,1,6,4],[7,0,7,5],[61,11,61,12],[62,11,62,12],[59,7,59,9],[59,11,59,12],[60,7,60,9],[60,11,60,12]]}
["Zahlenmäßiger Nachweis der Kosten "]
["für das im Rahmen des Verfügungsfonds Wehringhausen bewilligte Vorhaben"]
[{"$f":"Titel","v":0}]
[]
[null,"Antragsteller:",null,null,null,null,null,null,"Datum der Antragstellung:",{"$f":"Datum","v":"00:00:00"}]
[null,{"$f":"Institution","v":0}]
[null,{"$f":"Name__Ansprechpartner","v":0}]
["Sie können Eingaben nur in den hellgelben Feldern vornehmen.",null,null,null,null,null,"Zeilen einblenden: Zwei Zeilen markieren - rechte Maustaste - Einblenden\n-> Ausgeblendete Zeilen zwischen den markierten Zeilen werden angezeigt."]
[]
["Geplante AUSGABEN  (Übernahme aus Kosten-/ Finanzierungsübersicht)",null,null,null,null,null,"NACHWEIS der tatsächlichen Kosten"]
[null,null,"(z.B. Lernmittel, Öffentlichkeitsarbeit, Büromaterialien)",null,null,null,null,null,null,null,"Abweichung"]
["Nr.","Kosten","Einz.-Preis","Anzahl","Summe",null,"Einz.-Preis","Anzahl","Summe","Beleg-Nummern","in €","in %","Bemerkungen"]
["1.",{"$f":"IF('Kosten- und Finanzier.übersicht'!B17=\"\",\"\",'Kosten- und Finanzier.übersicht'!B17)","v":""},{"$f":"IF('Kosten- und Finanzier.übersicht'!C17=\"\",\"\",'Kosten- und Finanzier.übersicht'!C17)","v":""},{"$f":"IF('Kosten- und Finanzier.übersicht'!D17=\"\",\"\",'Kosten- und Finanzier.übersicht'!D17)","v":""},{"$f":"IF('Kosten- und Finanzier.übersicht'!E17=\"\",\"\",'Kosten- und Finanzier.übersicht'!E17)","v":0},null,null,null,{"$f":"G13*H13","v":0},null,{"$f":"I13-E13","v":0},{"$f":"I13/E13-1","v":{"$error":"#DIV/0!"}}]
["2.",{"$f":"IF('Kosten- und Finanzier.übersicht'!B18=\"\",\"\",'Kosten- und Finanzier.übersicht'!B18)","v":""},{"$f":"IF('Kosten- und Finanzier.übersicht'!C18=\"\",\"\",'Kosten- und Finanzier.übersicht'!C18)","v":""},{"$f":"IF('Kosten- und Finanzier.übersicht'!D18=\"\",\"\",'Kosten- und Finanzier.übersicht'!D18)","v":""},{"$f":"IF('Kosten- und Finanzier.übersicht'!E18=\"\",\"\",'Kosten- und Finanzier.übersicht'!E18)","v":0},null,null,null,0,null,0,{"$error":"#DIV/0!"}]
["3.",{"$f":"IF('Kosten- und Finanzier.übersicht'!B19=\"\",\"\",'Kosten- und Finanzier.übersicht'!B19)","v":""},{"$f":"IF('Kosten- und Finanzier.übersicht'!C19=\"\",\"\",'Kosten- und Finanzier.übersicht'!C19)","v":""},{"$f":"IF('Kosten- und Finanzier.übersicht'!D19=\"\",\"\",'Kosten- und Finanzier.übersicht'!D19)","v":""},{"$f":"IF('Kosten- und Finanzier.übersicht'!E19=\"\",\"\",'Kosten- und Finanzier.übersicht'!E19)","v":0},null,null,null,0,null,0,{"$error":"#DIV/0!"}]
["4.",{"$f":"IF('Kosten- und Finanzier.übersicht'!B20=\"\",\"\",'Kosten- und Finanzier.übersicht'!B20)","v":""},{"$f":"IF('Kosten- und Finanzier.übersicht'!C20=\"\",\"\",'Kosten- und Finanzier.übersicht'!C20)","v":""},{"$f":"IF('Kosten- und Finanzier.übersicht'!D20=\"\",\"\",'Kosten- und Finanzier.übersicht'!D20)","v":""},{"$f":"IF('Kosten- und Finanzier.übersicht'!E20=\"\",\"\",'Kosten- und Finanzier.übersicht'!E20)","v":0},null,null,null,0,null,0,{"$error":"#DIV/0!"}]
["5.",null,{"$f":"IF('Kosten- und Finanzier.übersicht'!C21=\"\",\"\",'Kosten- und Finanzier.übersicht'!C21)","v":""},{"$f":"IF('Kosten- und Finanzier.übersicht'!D21=\"\",\"\",'Kosten- und Finanzier.übersicht'!D21)","v":""},{"$f":"IF('Kosten- und Finanzier.übersicht'!E21=\"\",\"\",'Kosten- und Finanzier.übersicht'!E21)","v":0},null,null,null,0,null,0,{"$error":"#DIV/0!"}]
["6.",{"$f":"IF('Kosten- und Finanzier.übersicht'!B22=\"\",\"\",'Kosten- und Finanzier.übersicht'!B22)","v":""},{"$f":"IF('Kosten- und Finanzier.übersicht'!C22=\"\",\"\",'Kosten- und Finanzier.übersicht'!C22)","v":""},{"$f":"IF('Kosten- und Finanzier.übersicht'!D22=\"\",\"\",'Kosten- und Finanzier.übersicht'!D22)","v":""},{"$f":"IF('Kosten- und Finanzier.übersicht'!E22=\"\",\"\",'Kosten- und Finanzier.übersicht'!E22)","v":0},null,null,null,0,null,0,{"$error":"#DIV/0!"}]
["7.",{"$f":"IF('Kosten- und Finanzier.übersicht'!B23=\"\",\"\",'Kosten- und Finanzier.übersicht'!B23)","v":""},{"$f":"IF('Kosten- und Finanzier.übersicht'!C23=\"\",\"\",'Kosten- und Finanzier.übersicht'!C23)","v":""},{"$f":"IF('Kosten- und Finanzier.übersicht'!D23=\"\",\"\",'Kosten- und Finanzier.übersicht'!D23)","v":""},{"$f":"IF('Kosten- und Finanzier.übersicht'!E23=\"\",\"\",'Kosten- und Finanzier.übersicht'!E23)","v":0},null,null,null,0,null,0,{"$error":"#DIV/0!"}]
["8.",{"$f":"IF('Kosten- und Finanzier.übersicht'!B24=\"\",\"\",'Kosten- und Finanzier.übersicht'!B24)","v":""},{"$f":"IF('Kosten- und Finanzier.übersicht'!C24=\"\",\"\",'Kosten- und Finanzier.übersicht'!C24)","v":""},{"$f":"IF('Kosten- und Finanzier.übersicht'!D24=\"\",\"\",'Kosten- und Finanzier.übersicht'!D24)","v":""},{"$f":"IF('Kosten- und Finanzier.übersicht'!E24=\"\",\"\",'Kosten- und Finanzier.übersicht'!E24)","v":0},null,null,null,0,null,0,{"$error":"#DIV/0!"}]
["9.",{"$f":"IF('Kosten- und Finanzier.übersicht'!B25=\"\",\"\",'Kosten- und Finanzier.übersicht'!B25)","v":""},{"$f":"IF('Kosten- und Finanzier.übersicht'!C25=\"\",\"\",'Kosten- und Finanzier.übersicht'!C25)","v":""},{"$f":"IF('Kosten- und Finanzier.übersicht'!D25=\"\",\"\",'Kosten- und Finanzier.übersicht'!D25)","v":""},{"$f":"IF('Kosten- und Finanzier.übersicht'!E25=\"\",\"\",'Kosten- und Finanzier.übersicht'!E25)","v":0},null,null,null,0,null,0,{"$error":"#DIV/0!"}]
["10.",{"$f":"IF('Kosten- und Finanzier.übersicht'!B26=\"\",\"\",'Kosten- und Finanzier.übersicht'!B26)","v":""},{"$f":"IF('Kosten- und Finanzier.übersicht'!C26=\"\",\"\",'Kosten- und Finanzier.übersicht'!C26)","v":""},{"$f":"IF('Kosten- und Finanzier.übersicht'!D26=\"\",\"\",'Kosten- und Finanzier.übersicht'!D26)","v":""},{"$f":"IF('Kosten- und Finanzier.übersicht'!E26=\"\",\"\",'Kosten- und Finanzier.übersicht'!E26)","v":0},null,null,null,0,null,0,{"$error":"#DIV/0!"}]
["11.",{"$f":"IF('Kosten- und Finanzier.übersicht'!B27=\"\",\"\",'Kosten- und Finanzier.übersicht'!B27)","v":""},{"$f":"IF('Kosten- und Finanzier.übersicht'!C27=\"\",\"\",'Kosten- und Finanzier.übersicht'!C27)","v":""},{"$f":"IF('Kosten- und Finanzier.übersicht'!D27=\"\",\"\",'Kosten- und Finanzier.übersicht'!D27)","v":""},{"$f":"IF('Kosten- und Finanzier.übersicht'!E27=\"\",\"\",'Kosten- und Finanzier.übersicht'!E27)","v":0},null,null,null,0,null,0,{"$error":"#DIV/0!"}]
["12.",{"$f":"IF('Kosten- und Finanzier.übersicht'!B28=\"\",\"\",'Kosten- und Finanzier.übersicht'!B28)","v":""},{"$f":"IF('Kosten- und Finanzier.übersicht'!C28=\"\",\"\",'Kosten- und Finanzier.übersicht'!C28)","v":""},{"$f":"IF('Kosten- und Finanzier.übersicht'!D28=\"\",\"\",'Kosten- und Finanzier.übersicht'!D28)","v":""},{"$f":"IF('Kosten- und Finanzier.übersicht'!E28=\"\",\"\",'Kosten- und Finanzier.übersicht'!E28)","v":0},null,null,null,0,null,0,{"$error":"#DIV/0!"}]
["13.",{"$f":"IF('Kosten- und Finanzier.übersicht'!B29=\"\",\"\",'Kosten- und Finanzier.übersicht'!B29)","v":""},{"$f":"IF('Kosten- und Finanzier.übersicht'!C29=\"\",\"\",'Kosten- und Finanzier.übersicht'!C29)","v":""},{"$f":"IF('Kosten- und Finanzier.übersicht'!D29=\"\",\"\",'Kosten- und Finanzier.übersicht'!D29)","v":""},{"$f":"IF('Kosten- und Finanzier.übersicht'!E29=\"\",\"\",'Kosten- und Finanzier.übersicht'!E29)","v":0},null,null,null,0,null,0,{"$error":"#DIV/0!"}]
["14.",{"$f":"IF('Kosten- und Finanzier.übersicht'!B30=\"\",\"\",'Kosten- und Finanzier.übersicht'!B30)","v":""},{"$f":"IF('Kosten- und Finanzier.übersicht'!C30=\"\",\"\",'Kosten- und Finanzier.übersicht'!C30)","v":""},{"$f":"IF('Kosten- und Finanzier.übersicht'!D30=\"\",\"\",'Kosten- und Finanzier.übersicht'!D30)","v":""},{"$f":"IF('Kosten- und Finanzier.übersicht'!E30=\"\",\"\",'Kosten- und Finanzier.übersicht'!E30)","v":0},null,null,null,0,null,0,{"$error":"#DIV/0!"}]
["15.",{"$f":"IF('Kosten- und Finanzier.übersicht'!B31=\"\",\"\",'Kosten- und Finanzier.übersicht'!B31)","v":""},{"$f":"IF('Kosten- und Finanzier.übersicht'!C31=\"\",\"\",'Kosten- und Finanzier.übersicht'!C31)","v":""},{"$f":"IF('Kosten- und Finanzier.übersicht'!D31=\"\",\"\",'Kosten- und Finanzier.übersicht'!D31)","v":""},{"$f":"IF('Kosten- und Finanzier.übersicht'!E31=\"\",\"\",'Kosten- und Finanzier.übersicht'!E31)","v":0},null,null,null,0,null,0,{"$error":"#DIV/0!"}]
["16.",{"$f":"IF('Kosten- und Finanzier.übersicht'!B32=\"\",\"\",'Kosten- und Finanzier.übersicht'!B32)","v":""},{"$f":"IF('Kosten- und Finanzier.übersicht'!C32=\"\",\"\",'Kosten- und Finanzier.übersicht'!C32)","v":""},{"$f":"IF('Kosten- und Finanzier.übersicht'!D32=\"\",\"\",'Kosten- und Finanzier.übersicht'!D32)","v":""},{"$f":"IF('Kosten- und Finanzier.übersicht'!E32=\"\",\"\",'Kosten- und Finanzier.übersicht'!E32)","v":0},null,null,null,0,null,0,{"$error":"#DIV/0!"}]
["17.",{"$f":"IF('Kosten- und Finanzier.übersicht'!B33=\"\",\"\",'Kosten- und Finanzier.übersicht'!B33)","v":""},{"$f":"IF('Kosten- und Finanzier.übersicht'!C33=\"\",\"\",'Kosten- und Finanzier.übersicht'!C33)","v":""},{"$f":"IF('Kosten- und Finanzier.übersicht'!D33=\"\",\"\",'Kosten- und Finanzier.übersicht'!D33)","v":""},{"$f":"IF('Kosten- und Finanzier.übersicht'!E33=\"\",\"\",'Kosten- und Finanzier.übersicht'!E33)","v":0},null,null,null,0,null,0,{"$error":"#DIV/0!"}]
["18.",{"$f":"IF('Kosten- und Finanzier.übersicht'!B34=\"\",\"\",'Kosten- und Finanzier.übersicht'!B34)","v":""},{"$f":"IF('Kosten- und Finanzier.übersicht'!C34=\"\",\"\",'Kosten- und Finanzier.übersicht'!C34)","v":""},{"$f":"IF('Kosten- und Finanzier.übersicht'!D34=\"\",\"\",'Kosten- und Finanzier.übersicht'!D34)","v":""},{"$f":"IF('Kosten- und Finanzier.übersicht'!E34=\"\",\"\",'Kosten- und Finanzier.übersicht'!E34)","v":0},null,null,null,0,null,0,{"$error":"#DIV/0!"}]
["19.",{"$f":"IF('Kosten- und Finanzier.übersicht'!B35=\"\",\"\",'Kosten- und Finanzier.übersicht'!B35)","v":""},{"$f":"IF('Kosten- und Finanzier.übersicht'!C35=\"\",\"\",'Kosten- und Finanzier.übersicht'!C35)","v":""},{"$f":"IF('Kosten- und Finanzier.übersicht'!D35=\"\",\"\",'Kosten- und Finanzier.übersicht'!D35)","v":""},{"$f":"IF('Kosten- und Finanzier.übersicht'!E35=\"\",\"\",'Kosten- und Finanzier.übersicht'!E35)","v":0},null,null,null,0,null,0,{"$error":"#DIV/0!"}]
["20.",{"$f":"IF('Kosten- und Finanzier.übersicht'!B36=\"\",\"\",'Kosten- und Finanzier.übersicht'!B36)","v":""},{"$f":"IF('Kosten- und Finanzier.übersicht'!C36=\"\",\"\",'Kosten- und Finanzier.übersicht'!C36)","v":""},{"$f":"IF('Kosten- und Finanzier.übersicht'!D36=\"\",\"\",'Kosten- und Finanzier.übersicht'!D36)","v":""},{"$f":"IF('Kosten- und Finanzier.übersicht'!E36=\"\",\"\",'Kosten- und Finanzier.übersicht'!E36)","v":0},null,null,null,0,null,0,{"$error":"#DIV/0!"}]
["21.",{"$f":"IF('Kosten- und Finanzier.übersicht'!B37=\"\",\"\",'Kosten- und Finanzier.übersicht'!B37)","v":""},{"$f":"IF('Kosten- und Finanzier.übersicht'!C37=\"\",\"\",'Kosten- und Finanzier.übersicht'!C37)","v":""},{"$f":"IF('Kosten- und Finanzier.übersicht'!D37=\"\",\"\",'Kosten- und Finanzier.übersicht'!D37)","v":""},{"$f":"IF('Kosten- und Finanzier.übersicht'!E37=\"\",\"\",'Kosten- und Finanzier.übersicht'!E37)","v":0},null,null,null,0,null,0,{"$error":"#DIV/0!"}]
["22.",{"$f":"IF('Kosten- und Finanzier.übersicht'!B38=\"\",\"\",'Kosten- und Finanzier.übersicht'!B38)","v":""},{"$f":"IF('Kosten- und Finanzier.übersicht'!C38=\"\",\"\",'Kosten- und Finanzier.übersicht'!C38)","v":""},{"$f":"IF('Kosten- und Finanzier.übersicht'!D38=\"\",\"\",'Kosten- und Finanzier.übersicht'!D38)","v":""},{"$f":"IF('Kosten- und Finanzier.übersicht'!E38=\"\",\"\",'Kosten- und Finanzier.übersicht'!E38)","v":0},null,null,null,0,null,0,{"$error":"#DIV/0!"}]
["23.",{"$f":"IF('Kosten- und Finanzier.übersicht'!B39=\"\",\"\",'Kosten- und Finanzier.übersicht'!B39)","v":""},{"$f":"IF('Kosten- und Finanzier.übersicht'!C39=\"\",\"\",'Kosten- und Finanzier.übersicht'!C39)","v":""},{"$f":"IF('Kosten- und Finanzier.übersicht'!D39=\"\",\"\",'Kosten- und Finanzier.übersicht'!D39)","v":""},{"$f":"IF('Kosten- und Finanzier.übersicht'!E39=\"\",\"\",'Kosten- und Finanzier.übersicht'!E39)","v":0},null,null,null,0,null,0,{"$error":"#DIV/0!"}]
["24.",{"$f":"IF('Kosten- und Finanzier.übersicht'!B40=\"\",\"\",'Kosten- und Finanzier.übersicht'!B40)","v":""},{"$f":"IF('Kosten- und Finanzier.übersicht'!C40=\"\",\"\",'Kosten- und Finanzier.übersicht'!C40)","v":""},{"$f":"IF('Kosten- und Finanzier.übersicht'!D40=\"\",\"\",'Kosten- und Finanzier.übersicht'!D40)","v":""},{"$f":"IF('Kosten- und Finanzier.übersicht'!E40=\"\",\"\",'Kosten- und Finanzier.übersicht'!E40)","v":0},null,null,null,0,null,0,{"$error":"#DIV/0!"}]
["25.",{"$f":"IF('Kosten- und Finanzier.übersicht'!B41=\"\",\"\",'Kosten- und Finanzier.übersicht'!B41)","v":""},{"$f":"IF('Kosten- und Finanzier.übersicht'!C41=\"\",\"\",'Kosten- und Finanzier.übersicht'!C41)","v":""},{"$f":"IF('Kosten- und Finanzier.übersicht'!D41=\"\",\"\",'Kosten- und Finanzier.übersicht'!D41)","v":""},{"$f":"IF('Kosten- und Finanzier.übersicht'!E41=\"\",\"\",'Kosten- und Finanzier.übersicht'!E41)","v":0},null,null,null,{"$f":"G37*H37","v":0},null,{"$f":"I37-E37","v":0},{"$f":"I37/E37-1","v":{"$error":"#DIV/0!"}}]
["26.",{"$f":"IF('Kosten- und Finanzier.übersicht'!B42=\"\",\"\",'Kosten- und Finanzier.übersicht'!B42)","v":""},{"$f":"IF('Kosten- und Finanzier.übersicht'!C42=\"\",\"\",'Kosten- und Finanzier.übersicht'!C42)","v":""},{"$f":"IF('Kosten- und Finanzier.übersicht'!D42=\"\",\"\",'Kosten- und Finanzier.übersicht'!D42)","v":""},{"$f":"IF('Kosten- und Finanzier.übersicht'!E42=\"\",\"\",'Kosten- und Finanzier.übersicht'!E42)","v":0},null,null,null,0,null,0,{"$error":"#DIV/0!"}]
["27.",{"$f":"IF('Kosten- und Finanzier.übersicht'!B43=\"\",\"\",'Kosten- und Finanzier.übersicht'!B43)","v":""},{"$f":"IF('Kosten- und Finanzier.übersicht'!C43=\"\",\"\",'Kosten- und Finanzier.übersicht'!C43)","v":""},{"$f":"IF('Kosten- und Finanzier.übersicht'!D43=\"\",\"\",'Kosten- und Finanzier.übersicht'!D43)","v":""},{"$f":"IF('Kosten- und Finanzier.übersicht'!E43=\"\",\"\",'Kosten- und Finanzier.übersicht'!E43)","v":0},null,null,null,0,null,0,{"$error":"#DIV/0!"}]
["28.",{"$f":"IF('Kosten- und Finanzier.übersicht'!B44=\"\",\"\",'Kosten- und Finanzier.übersicht'!B44)","v":""},{"$f":"IF('Kosten- und Finanzier.übersicht'!C44=\"\",\"\",'Kosten- und Finanzier.übersicht'!C44)","v":""},{"$f":"IF('Kosten- und Finanzier.übersicht'!D44=\"\",\"\",'Kosten- und Finanzier.übersicht'!D44)","v":""},{"$f":"IF('Kosten- und Finanzier.übersicht'!E44=\"\",\"\",'Kosten- und Finanzier.übersicht'!E44)","v":0},null,null,null,0,null,0,{"$error":"#DIV/0!"}]
["29.",{"$f":"IF('Kosten- und Finanzier.übersicht'!B45=\"\",\"\",'Kosten- und Finanzier.übersicht'!B45)","v":""},{"$f":"IF('Kosten- und Finanzier.übersicht'!C45=\"\",\"\",'Kosten- und Finanzier.übersicht'!C45)","v":""},{"$f":"IF('Kosten- und Finanzier.übersicht'!D45=\"\",\"\",'Kosten- und Finanzier.übersicht'!D45)","v":""},{"$f":"IF('Kosten- und Finanzier.übersicht'!E45=\"\",\"\",'Kosten- und Finanzier.übersicht'!E45)","v":0},null,null,null,0,null,0,{"$error":"#DIV/0!"}]
["30.",{"$f":"IF('Kosten- und Finanzier.übersicht'!B46=\"\",\"\",'Kosten- und Finanzier.übersicht'!B46)","v":""},{"$f":"IF('Kosten- und Finanzier.übersicht'!C46=\"\",\"\",'Kosten- und Finanzier.übersicht'!C46)","v":""},{"$f":"IF('Kosten- und Finanzier.übersicht'!D46=\"\",\"\",'Kosten- und Finanzier.übersicht'!D46)","v":""},{"$f":"IF('Kosten- und Finanzier.übersicht'!E46=\"\",\"\",'Kosten- und Finanzier.übersicht'!E46)","v":0},null,null,null,0,null,0,{"$error":"#DIV/0!"}]
["31.",{"$f":"IF('Kosten- und Finanzier.übersicht'!B47=\"\",\"\",'Kosten- und Finanzier.übersicht'!B47)","v":""},{"$f":"IF('Kosten- und Finanzier.übersicht'!C47=\"\",\"\",'Kosten- und Finanzier.übersicht'!C47)","v":""},{"$f":"IF('Kosten- und Finanzier.übersicht'!D47=\"\",\"\",'Kosten- und Finanzier.übersicht'!D47)","v":""},{"$f":"IF('Kosten- und Finanzier.übersicht'!E47=\"\",\"\",'Kosten- und Finanzier.übersicht'!E47)","v":0},null,null,null,0,null,0,{"$error":"#DIV/0!"}]
["32.",{"$f":"IF('Kosten- und Finanzier.übersicht'!B48=\"\",\"\",'Kosten- und Finanzier.übersicht'!B48)","v":""},{"$f":"IF('Kosten- und Finanzier.übersicht'!C48=\"\",\"\",'Kosten- und Finanzier.übersicht'!C48)","v":""},{"$f":"IF('Kosten- und Finanzier.übersicht'!D48=\"\",\"\",'Kosten- und Finanzier.übersicht'!D48)","v":""},{"$f":"IF('Kosten- und Finanzier.übersicht'!E48=\"\",\"\",'Kosten- und Finanzier.übersicht'!E48)","v":0},null,null,null,0,null,0,{"$error":"#DIV/0!"}]
["33.",{"$f":"IF('Kosten- und Finanzier.übersicht'!B49=\"\",\"\",'Kosten- und Finanzier.übersicht'!B49)","v":""},{"$f":"IF('Kosten- und Finanzier.übersicht'!C49=\"\",\"\",'Kosten- und Finanzier.übersicht'!C49)","v":""},{"$f":"IF('Kosten- und Finanzier.übersicht'!D49=\"\",\"\",'Kosten- und Finanzier.übersicht'!D49)","v":""},{"$f":"IF('Kosten- und Finanzier.übersicht'!E49=\"\",\"\",'Kosten- und Finanzier.übersicht'!E49)","v":0},null,null,null,0,null,0,{"$error":"#DIV/0!"}]
["34.",{"$f":"IF('Kosten- und Finanzier.übersicht'!B50=\"\",\"\",'Kosten- und Finanzier.übersicht'!B50)","v":""},{"$f":"IF('Kosten- und Finanzier.übersicht'!C50=\"\",\"\",'Kosten- und Finanzier.übersicht'!C50)","v":""},{"$f":"IF('Kosten- und Finanzier.übersicht'!D50=\"\",\"\",'Kosten- und Finanzier.übersicht'!D50)","v":""},{"$f":"IF('Kosten- und Finanzier.übersicht'!E50=\"\",\"\",'Kosten- und Finanzier.übersicht'!E50)","v":0},null,null,null,0,null,0,{"$error":"#DIV/0!"}]
["35.",{"$f":"IF('Kosten- und Finanzier.übersicht'!B51=\"\",\"\",'Kosten- und Finanzier.übersicht'!B51)","v":""},{"$f":"IF('Kosten- und Finanzier.übersicht'!C51=\"\",\"\",'Kosten- und Finanzier.übersicht'!C51)","v":""},{"$f":"IF('Kosten- und Finanzier.übersicht'!D51=\"\",\"\",'Kosten- und Finanzier.übersicht'!D51)","v":""},{"$f":"IF('Kosten- und Finanzier.übersicht'!E51=\"\",\"\",'Kosten- und Finanzier.übersicht'!E51)","v":0},null,null,null,0,null,0,{"$error":"#DIV/0!"}]
["36.",{"$f":"IF('Kosten- und Finanzier.übersicht'!B52=\"\",\"\",'Kosten- und Finanzier.übersicht'!B52)","v":""},{"$f":"IF('Kosten- und Finanzier.übersicht'!C52=\"\",\"\",'Kosten- und Finanzier.übersicht'!C52)","v":""},{"$f":"IF('Kosten- und Finanzier.übersicht'!D52=\"\",\"\",'Kosten- und Finanzier.übersicht'!D52)","v":""},{"$f":"IF('Kosten- und Finanzier.übersicht'!E52=\"\",\"\",'Kosten- und Finanzier.übersicht'!E52)","v":0},null,null,null,0,null,0,{"$error":"#DIV/0!"}]
["37.",{"$f":"IF('Kosten- und Finanzier.übersicht'!B53=\"\",\"\",'Kosten- und Finanzier.übersicht'!B53)","v":""},{"$f":"IF('Kosten- und Finanzier.übersicht'!C53=\"\",\"\",'Kosten- und Finanzier.übersicht'!C53)","v":""},{"$f":"IF('Kosten- und Finanzier.übersicht'!D53=\"\",\"\",'Kosten- und Finanzier.übersicht'!D53)","v":""},{"$f":"IF('Kosten- und Finanzier.übersicht'!E53=\"\",\"\",'Kosten- und Finanzier.übersicht'!E53)","v":0},null,null,null,0,null,0,{"$error":"#DIV/0!"}]
["38.",{"$f":"IF('Kosten- und Finanzier.übersicht'!B54=\"\",\"\",'Kosten- und Finanzier.übersicht'!B54)","v":""},{"$f":"IF('Kosten- und Finanzier.übersicht'!C54=\"\",\"\",'Kosten- und Finanzier.übersicht'!C54)","v":""},{"$f":"IF('Kosten- und Finanzier.übersicht'!D54=\"\",\"\",'Kosten- und Finanzier.übersicht'!D54)","v":""},{"$f":"IF('Kosten- und Finanzier.übersicht'!E54=\"\",\"\",'Kosten- und Finanzier.übersicht'!E54)","v":0},null,null,null,0,null,0,{"$error":"#DIV/0!"}]
["39.",{"$f":"IF('Kosten- und Finanzier.übersicht'!B55=\"\",\"\",'Kosten- und Finanzier.übersicht'!B55)","v":""},{"$f":"IF('Kosten- und Finanzier.übersicht'!C55=\"\",\"\",'Kosten- und Finanzier.übersicht'!C55)","v":""},{"$f":"IF('Kosten- und Finanzier.übersicht'!D55=\"\",\"\",'Kosten- und Finanzier.übersicht'!D55)","v":""},{"$f":"IF('Kosten- und Finanzier.übersicht'!E55=\"\",\"\",'Kosten- und Finanzier.übersicht'!E55)","v":0},null,null,null,0,null,0,{"$error":"#DIV/0!"}]
["40.",{"$f":"IF('Kosten- und Finanzier.übersicht'!B56=\"\",\"\",'Kosten- und Finanzier.übersicht'!B56)","v":""},{"$f":"IF('Kosten- und Finanzier.übersicht'!C56=\"\",\"\",'Kosten- und Finanzier.übersicht'!C56)","v":""},{"$f":"IF('Kosten- und Finanzier.übersicht'!D56=\"\",\"\",'Kosten- und Finanzier.übersicht'!D56)","v":""},{"$f":"IF('Kosten- und Finanzier.übersicht'!E56=\"\",\"\",'Kosten- und Finanzier.übersicht'!E56)","v":0},null,null,null,0,null,0,{"$error":"#DIV/0!"}]
[null,"bis zu 25 weitere Zeilen können eingeblendet werden"]
["Summen Einnahmen",null,null,null,{"$f":"SUM(E43:E53)","v":0},null,null,null,{"$f":"SUM(I43:I53)","v":0},null,{"$f":"I54-E54","v":0},{"$f":"I54/E54-1","v":{"$error":"#DIV/0!"}}]
[]
["Fördermittel Verfügungsfonds",null,null,null,{"$f":"E39-E54","v":0},null,null,null,{"$f":"I39-I54","v":0},null,{"$f":"K39-K54","v":0},{"$f":"I56/E56-1","v":{"$error":"#DIV/0!"}}]
[]
[]
[]
[]
[null,null,null,null,null,null,null,"Ort, Datum",null,null,null,"Unterschrift"]
[null,null,null,null,null,null,null,null,null,null,null,{"$f":"Name__Ansprechpartner","v":0}]
[null,null,null,null,null,null,null,null,null,null,null,"Name in Blockbuchstaben"]